bitfinex/quotes_ETHUSD_20250904
["timestamp","ask_amount","ask_price","bid_price","bid_amount"]
[1756955806949,26.15726261,4413.6,4413.5,0.004]
[1756955807942,26.15700402,4413.6,4413.5,0.004]
[1756955810352,33.17700402,4413.6,4413.5,0.004]
[1756955810759,13.57512984,4413.6,4413.5,0.7533]
[1756955811053,17.18162629,4413.6,4413.5,0.465]
[1756955811260,16.69562629,4413.6,4413.5,0.7533]
[1756955812830,17.01912984,4413.6,4413.5,0.7533]
[1756955815040,17.13272984,4413.6,4413.5,0.7533]
[1756955815838,0.09350217,4413.6,4413.5,1.205]
[1756955816038,0.1136,4414.5,4413.8,2.26560595]
[1756955816242,0.1136,4414.5,4414.4,0.2883]
[1756955816560,0.1386,4414.8,4414.4,1.201]
[1756955817064,0.1386,4414.8,4414.5,0.93535262]
[1756955817363,0.025,4414.8,4414.7,3.17075958]
[1756955817563,0.025,4414.8,4414.7,5.20105958]
[1756955817761,0.025,4414.8,4414.7,6.11375958]
[1756955818431,1e-08,4414.8,4414.7,9.11375958]
[1756955818757,1e-08,4414.8,4414.7,10.80839689]
[1756955818952,0.001,4415.4,4415.0,0.792]
[1756955819278,0.001,4415.4,4415.3,3.05685176]
[1756955819579,0.001,4415.4,4415.3,6.48140027]
[1756955819880,0.001,4416.3,4416.2,2.26439019]
[1756955820053,0.001,4416.3,4416.2,11.83899019]
[1756955820248,0.001,4416.3,4416.2,13.09489019]
[1756955821283,0.001,4416.3,4416.2,16.29489019]
[1756955821866,0.001,4416.3,4416.2,6.16789019]
[1756955822069,0.001,4416.3,4416.2,10.93712635]
[1756955822768,0.001,4416.3,4416.2,7.01112635]
[1756955822991,0.001,4416.3,4416.2,10.93712635]
[1756955823146,0.001,4416.3,4416.2,10.82352635]
[1756955823342,0.001,4416.3,4416.2,10.93712635]
[1756955824273,0.001,4416.3,4416.2,13.93712635]
[1756955825680,0.001,4416.3,4416.2,17.13712635]
[1756955825876,1e-08,4416.8,4416.7,3.05613385]
[1756955826196,1e-08,4416.8,4416.7,10.53581003]
[1756955826379,1e-08,4416.8,4416.7,11.7690687]
[1756955826554,1e-08,4416.8,4416.7,14.9690687]
[1756955828659,0.4303,4419.5,4417.8,0.792]
[1756955828866,0.4303,4419.5,4418.2,3.05536517]
[1756955829097,0.4303,4419.5,4418.2,8.39274562]
[1756955829397,0.4303,4419.5,4418.2,9.33481197]
[1756955829896,0.001,4420.1,4418.2,12.33481197]
[1756955830195,0.4313,4419.6,4418.2,8.41181197]
[1756955830376,0.4303,4419.2,4418.2,4.94331197]
[1756955830578,0.001,4419.6,4418.2,15.53481197]
[1756955831094,0.001,4419.6,4418.2,15.62548603]
[1756955831594,0.001,4419.6,4418.2,15.62448603]
[1756955832388,1e-08,4418.8,4418.7,2.26310905]
[1756955832576,1e-08,4418.8,4418.7,8.96605105]
[1756955832776,1e-08,4418.8,4418.7,9.23461996]
[1756955833004,1e-08,4418.8,4418.7,10.19931996]
[1756955834193,1e-08,4418.8,4418.7,16.39931996]
[1756955835883,1e-08,4418.8,4418.7,16.51211996]
[1756955836210,1e-08,4418.8,4418.7,16.51111996]
[1756955837708,1e-08,4418.8,4418.7,13.51011996]
[1756955838529,1e-08,4418.8,4418.7,12.54541996]
[1756955838896,0.00100001,4418.8,4418.7,12.71771893]
[1756955839830,0.00100001,4418.8,4418.7,13.21391893]
[1756955840127,0.31700001,4418.8,4418.7,4.34221996]
[1756955840305,0.74730001,4418.8,4418.7,8.26221996]
[1756955840809,0.00100001,4418.8,4418.7,9.05421996]
[1756955841000,0.00100001,4418.8,4418.7,9.34441996]
[1756955841740,0.00100001,4418.8,4418.7,10.0116444]
[1756955841921,0.31700001,4418.8,4418.7,5.3052444]
[1756955842229,0.74730001,4418.8,4418.7,9.2242444]
[1756955842416,0.74730001,4418.8,4418.7,5.3052444]
[1756955842622,0.31700001,4418.8,4418.7,9.2242444]
[1756955843140,1.22100001,4418.8,4418.7,8.82690905]
[1756955843301,0.74730001,4418.8,4418.7,8.82690905]
[1756955844826,0.31700001,4418.8,4418.7,8.82690905]
[1756955846545,0.00100001,4418.8,4418.7,9.11810905]
[1756955848111,0.00100001,4418.8,4418.7,10.08280905]
[1756955848311,0.00100001,4418.8,4418.7,12.19826153]
[1756955850516,0.00100001,4418.8,4418.7,15.39826153]
[1756955854028,0.00100001,4418.8,4418.7,14.92976153]
[1756955854631,0.00100001,4418.8,4418.7,15.38466153]
[1756955854927,0.00100001,4418.8,4418.7,18.38466153]
[1756955855117,0.001,4419.3,4419.2,3.054853]
[1756955855335,0.001,4419.3,4419.2,7.61643085]
[1756955855653,0.001,4419.3,4419.2,7.93273085]
[1756955855955,0.001,4419.3,4419.2,11.13273085]
[1756955858367,0.3113,4419.3,4419.2,10.81643085]
[1756955858534,0.001,4419.3,4419.2,11.13273085]
[1756955859625,0.001,4419.3,4419.2,10.81643085]
[1756955860027,0.001,4419.3,4419.2,12.05933085]
[1756955861252,0.001,4419.3,4419.2,11.60443085]
[1756955861763,0.001,4419.3,4419.2,15.05933085]
[1756955862437,0.001,4419.3,4419.2,14.13073085]
[1756955862871,0.001,4419.3,4419.2,14.60243085]
[1756955863061,0.001,4419.3,4419.2,15.05733085]
[1756955865070,0.001,4419.7,4419.6,3.0546482]
[1756955865268,0.001,4419.7,4419.6,12.31311302]
[1756955865458,0.001,4419.7,4419.6,12.74221302]
[1756955865659,0.001,4419.7,4419.6,15.94221302]
[1756955865971,0.7822,4419.7,4419.6,15.62591302]
[1756955866168,1.2486,4419.7,4419.6,7.3144482]
[1756955866389,1.2486,4419.7,4419.6,1.8518]
[1756955866965,1.2486,4419.7,4419.6,5.7658]
[1756955867336,1.2486,4419.7,4419.6,0.1128]
[1756955867674,1.2486,4419.7,4419.0,0.111]
[1756955867675,2.26290421,4419.1,4419.0,0.111]
[1756955867878,1.81791378,4419.1,4419.0,0.111]
[1756955868178,1.2476,4419.1,4419.0,0.111]
[1756955868355,1.2476,4419.1,4418.7,0.1128]
[1756955868562,1.3604,4419.1,4418.8,3.914]
[1756955868756,0.9373,4419.0,4418.8,3.914]
[1756955868956,1.2476,4418.9,4418.8,3.914]
[1756955869583,0.3103,4418.9,4418.8,6.96905784]
[1756955869752,0.7812,4418.9,4418.8,7.08185784]
[1756955869955,0.7812,4418.9,4418.8,8.01675755]
[1756955870766,0.7812,4418.9,4418.8,8.24355755]
[1756955870955,0.3103,4418.9,4418.8,8.01675755]
[1756955871351,0.4674,4419.7,4418.9,0.792]
[1756955871540,0.3103,4419.0,4418.9,3.05500663]
[1756955871741,0.3103,4419.0,4418.9,7.83229949]
[1756955871941,0.3103,4419.0,4418.9,7.94509949]
[1756955872986,0.001,4419.7,4419.6,0.792]
[1756955873152,0.7822,4419.7,4419.6,8.7066482]
[1756955873356,0.7822,4419.7,4419.6,8.8194482]
[1756955873975,1.2486,4419.7,4419.6,8.8194482]
[1756955874554,0.3113,4419.7,4419.6,8.8194482]
[1756955874754,0.7822,4419.7,4419.6,9.92766785]
[1756955875186,0.3113,4419.7,4419.6,9.92766785]
[1756955875343,0.7822,4419.7,4419.6,9.92766785]
[1756955875546,0.001,4419.7,4419.6,10.24396785]
[1756955876206,0.001,4419.7,4419.6,14.17056785]
[1756955876701,0.001,4419.7,4419.6,17.37056785]
[1756955877198,1e-08,4419.8,4419.7,6.054597]
[1756955877397,1e-08,4419.8,4419.7,9.24910497]
[1756955877570,1e-08,4419.8,4419.7,9.56540497]
[1756955877764,1e-08,4419.8,4419.7,12.76540497]
[1756955880303,1e-08,4419.8,4419.7,11.83880497]
[1756955880490,0.28520001,4419.8,4419.7,14.64250497]
[1756955880698,0.28520001,4419.8,4419.7,10.73050497]
[1756955880882,1.23830001,4419.8,4419.7,2.262597]
[1756955881082,1e-08,4419.8,4419.7,6.174597]
[1756955881605,1e-08,4419.8,4419.7,7.385597]
[1756955882201,1e-08,4419.8,4419.7,7.079397]
[1756955882402,1e-08,4419.8,4419.7,8.23566152]
[1756955882772,1e-08,4419.8,4419.7,12.34396152]
[1756955882976,1e-08,4419.8,4419.7,12.45676152]
[1756955885421,1e-08,4419.8,4419.7,11.54186152]
[1756955885582,1e-08,4419.8,4419.7,12.45676152]
[1756955885784,1e-08,4419.8,4419.7,11.23566152]
[1756955885994,1e-08,4419.8,4419.7,11.54186152]
[1756955886284,1e-08,4419.8,4419.7,12.02346152]
[1756955886811,1e-08,4419.8,4419.7,12.45676152]
[1756955889425,0.49838496,4422.3,4421.7,2.2615736]
[1756955889713,0.49280001,4421.8,4421.7,7.2013736]
[1756955890008,0.77800001,4421.8,4421.7,2.6438]
[1756955890211,0.77800001,4421.8,4421.7,8.8153736]
[1756955890391,1.23930001,4421.8,4421.7,8.8153736]
[1756955890724,0.74750001,4421.8,4421.7,8.8153736]
[1756955891181,0.28620001,4421.8,4421.7,10.48334193]
[1756955891889,0.74750001,4421.8,4421.7,4.9053736]
[1756955892096,1.23930001,4421.8,4421.7,2.6438]
[1756955892406,1.23930001,4421.8,4421.7,5.7618]
[1756955893601,1.23930001,4421.8,4421.7,8.0233736]
[1756955894222,1.23930001,4421.8,4421.7,5.7618]
[1756955894391,1.23930001,4421.8,4421.7,8.0233736]
[1756955895623,1.23930001,4421.8,4421.7,5.7618]
[1756955895800,1.23930001,4421.8,4421.7,5.648]
[1756955895801,1.36323001,4421.8,4421.7,5.648]
[1756955896829,3.62475246,4421.8,4421.7,1.739]
[1756955897021,3.62475246,4421.8,4421.3,0.1128]
[1756955897215,0.00558496,4421.7,4421.3,0.1128]
[1756955897524,0.00558496,4421.7,4421.0,1.739]
[1756955897525,0.2852,4421.4,4421.1,0.1128]
[1756955897696,0.9531,4421.3,4421.1,0.1128]
[1756955897894,0.4613,4421.3,4421.1,0.1128]
[1756955898097,0.2852,4421.2,4421.1,0.1128]
[1756955898533,1.2383,4421.2,4421.1,3.909]
[1756955898904,1.2383,4421.2,4421.0,4.00092864]
[1756955899231,0.9531,4421.1,4421.0,4.00092864]
[1756955899410,1.2383,4421.1,4421.0,7.90992864]
[1756955899998,1.2383,4421.1,4421.0,5.648]
[1756955900628,1.2383,4421.1,4421.0,5.647]
[1756955901126,1.2383,4421.1,4421.0,7.90893168]
[1756955902944,0.7465,4421.1,4421.0,7.90893168]
[1756955903244,0.2852,4421.1,4421.0,8.70093168]
[1756955903419,0.7465,4421.1,4421.0,6.5518]
[1756955903624,0.7465,4421.1,4421.0,8.81373168]
[1756955904149,1.2383,4421.1,4421.0,8.81373168]
[1756955904717,1.2383,4421.1,4421.0,4.11373168]
[1756955904918,1.2383,4421.1,4421.0,8.02173168]
[1756955905146,1.2383,4421.1,4421.0,1.739]
[1756955905347,1.36213,4421.1,4421.0,5.647]
[1756955905519,1.2383,4421.1,4421.0,7.90893168]
[1756955905915,1.2383,4421.1,4421.0,4.00093168]
[1756955906115,1.2383,4421.1,4421.0,5.647]
[1756955907238,0.49280001,4421.8,4421.5,2.26167497]
[1756955907435,0.2852,4421.6,4421.5,2.26167497]
[1756955907664,0.2852,4421.6,4421.5,6.16967497]
[1756955907971,0.7465,4421.6,4421.5,6.16967497]
[1756955908547,0.00100001,4421.8,4421.7,3.0535736]
[1756955908753,0.00100001,4421.8,4421.7,6.98318933]
[1756955909067,0.00100001,4421.8,4421.7,7.2667736]
[1756955909469,0.00100001,4421.8,4421.7,7.3795736]
[1756955909638,0.00100001,4421.8,4421.7,7.0733736]
[1756955910040,0.00100001,4421.8,4421.7,7.3681736]
[1756955910369,0.00100001,4421.8,4421.7,8.46475068]
[1756955912367,0.00100001,4421.8,4421.7,7.3681736]
[1756955913071,0.00100001,4421.8,4421.7,8.1580736]
[1756955913324,0.00100001,4421.8,4421.7,8.2708736]
[1756955914143,0.00100001,4421.8,4421.7,11.2708736]
[1756955914344,0.00100001,4421.8,4421.7,11.1580736]
[1756955914559,0.00100001,4421.8,4421.7,12.69828791]
[1756955915646,0.00100001,4421.8,4421.7,15.89828791]
[1756955915950,0.001,4422.7,4422.6,3.05311337]
[1756955916275,0.001,4422.7,4422.6,8.81091337]
[1756955916477,0.001,4422.7,4422.6,9.10571337]
[1756955916779,0.001,4422.7,4422.6,11.68850351]
[1756955917197,0.001,4422.7,4422.6,11.25950351]
[1756955917482,0.001,4422.7,4422.6,11.68850351]
[1756955918446,0.001,4422.7,4422.6,14.68850351]
[1756955918849,0.001,4422.7,4422.6,17.88850351]
[1756955919050,0.025,4423.8,4423.7,3.05255112]
[1756955919253,0.025,4423.8,4423.7,8.69555112]
[1756955919498,0.025,4423.8,4423.7,10.19876879]
[1756955919968,0.025,4423.8,4423.7,10.67246879]
[1756955920279,0.025,4423.8,4423.7,8.41191767]
[1756955920447,0.3201,4423.8,4423.7,6.5468]
[1756955920781,1.2609,4423.8,4423.7,8.80735112]
[1756955921464,0.7876,4423.8,4423.7,8.80735112]
[1756955922978,0.3201,4423.8,4423.7,8.80735112]
[1756955923147,0.7876,4423.8,4423.7,8.80735112]
[1756955923350,0.3201,4423.8,4423.7,1.8508]
[1756955923547,1.2609,4423.8,4423.7,5.642]
[1756955924856,1.2609,4423.8,4423.7,1.738]
[1756955925084,1.2609,4423.8,4423.7,5.641]
[1756955926679,1.2619,4423.8,4423.7,5.641]
[1756955927583,1.39937,4423.8,4423.7,1.738]
[1756955927784,1.51217,4423.8,4423.7,5.641]
[1756955929582,1.3747,4423.8,4423.7,5.641]
[1756955930084,1.3747,4423.8,4423.7,1.738]
[1756955930382,1.3747,4423.8,4423.7,5.64]
[1756955933653,1.3747,4423.8,4423.7,1.738]
[1756955934292,1.3747,4423.8,4423.7,5.639]
[1756955938261,0.9014,4423.8,4423.7,5.639]
[1756955938698,0.026,4423.8,4423.7,5.9338]
[1756955938864,0.026,4423.8,4423.7,9.09705112]
[1756955939060,0.026,4423.8,4423.7,8.19435112]
[1756955939789,0.026,4423.8,4423.7,8.66805112]
[1756955940295,0.7702,4423.8,4423.7,1.738]
[1756955940506,1.2478,4423.8,4423.7,5.639]
[1756955940820,1.2478,4423.8,4423.7,1.738]
[1756955940968,0.3311,4423.8,4423.7,5.638]
[1756955941304,0.026,4423.8,4423.7,7.89855112]
[1756955941504,0.026,4423.8,4423.7,8.19015112]
[1756955941688,0.026,4423.8,4423.7,8.66375112]
[1756955943068,0.026,4423.8,4423.7,11.16650383]
[1756955944685,0.026,4423.8,4423.7,10.71720383]
[1756955944889,0.026,4423.8,4423.7,11.16650383]
[1756955947197,0.026,4423.8,4423.7,10.71720383]
[1756955947727,0.026,4423.8,4423.7,11.16650383]
[1756955947928,0.001,4424.3,4424.2,3.05229564]
[1756955948094,0.001,4424.3,4424.2,7.3693252]
[1756955948294,0.001,4424.3,4424.2,8.5838252]
[1756955950939,0.001,4424.3,4424.2,4.2355252]
[1756955951143,0.001,4424.3,4424.2,8.1335252]
[1756955951446,0.001,4424.3,4424.2,8.5828252]
[1756955951739,0.001,4424.3,4424.2,11.7828252]
[1756955952941,0.001,4424.3,4424.2,11.3335252]
[1756955953107,0.001,4424.3,4424.2,11.3325252]
[1756955953839,0.001,4424.3,4424.2,7.4355252]
[1756955954021,0.001,4424.3,4424.2,11.7818252]
[1756955954337,0.001,4424.3,4424.2,11.3325252]
[1756955955810,0.001,4424.3,4424.2,11.7818252]
[1756955956539,0.001,4424.3,4424.2,11.3325252]
[1756955956833,0.001,4424.3,4424.2,10.8579252]
[1756955957939,0.001,4424.3,4424.2,11.3315252]
[1756955958344,0.001,4424.3,4424.2,11.7808252]
[1756955958533,0.001,4424.3,4424.2,2.6783252]
[1756955958735,0.7452,4424.3,4424.2,6.26909564]
[1756955958910,0.7452,4424.3,4424.2,7.06109564]
[1756955959242,0.3061,4424.3,4424.2,7.06109564]
[1756955959656,0.001,4424.3,4424.2,7.06109564]
[1756955959815,0.001,4424.3,4424.2,7.35269564]
[1756955960016,0.001,4424.3,4424.2,8.31400198]
[1756955960642,0.001,4424.3,4424.2,9.23690198]
[1756955960946,0.001,4424.3,4424.2,8.31400198]
[1756955961111,0.001,4424.3,4424.2,9.23690198]
[1756955962036,0.001,4424.3,4424.2,12.43690198]
[1756955963422,0.001,4424.3,4424.2,17.86690198]
[1756955963830,0.001,4424.3,4424.2,16.94300198]
[1756955964016,0.001,4424.3,4424.2,13.97090198]
[1756955964345,0.001,4424.3,4424.2,17.86490198]
[1756955965214,0.001,4424.3,4424.2,20.86490198]
[1756955965818,1e-08,4424.8,4424.7,6.05204022]
[1756955966019,1e-08,4424.8,4424.7,8.80704424]
[1756955966221,1e-08,4424.8,4424.7,13.91554424]
[1756955966419,1e-08,4424.8,4424.7,17.11554424]
[1756955968233,0.4391,4426.7,4425.9,0.792]
[1756955968449,0.4391,4426.7,4426.1,0.792]
[1756955968651,0.4391,4426.7,4426.6,3.05107016]
[1756955968820,0.4776,4427.3,4426.7,3.05101913]
[1756955969022,0.4641,4426.8,4426.7,3.05101913]
[1756955969356,1.2468,4426.8,4426.7,3.05101913]
[1756955969743,0.025,4426.8,4426.7,3.05101913]
[1756955969922,0.3301,4426.8,4426.7,4.09541316]
[1756955970123,0.025,4427.8,4427.7,2.25850893]
[1756955970336,0.025,4427.8,4427.7,8.79330893]
[1756955970634,0.7874,4427.8,4427.7,8.79330893]
[1756955970828,1.2439,4427.8,4427.7,4.90030893]
[1756955971037,1.2439,4427.8,4427.7,8.79330893]
[1756955971223,0.025,4427.8,4427.7,8.79330893]
[1756955971423,0.3239,4427.8,4427.7,9.89750016]
[1756955971623,0.3239,4427.8,4427.7,8.79230893]
[1756955972051,0.3239,4427.8,4427.7,4.90030893]
[1756955972252,0.3239,4427.8,4427.7,8.79230893]
[1756955972622,0.7804,4427.8,4427.7,8.79230893]
[1756955973055,0.3239,4427.8,4427.7,8.79230893]
[1756955973257,0.025,4427.8,4427.7,9.09080893]
[1756955973926,1e-08,4427.8,4427.7,13.27687266]
[1756955974144,1e-08,4427.8,4427.7,8.93937266]
[1756955974462,1e-08,4427.8,4426.7,1.10507436]
[1756955974463,1.21890001,4427.8,4426.6,1.737]
[1756955974757,0.92,4427.7,4426.7,3.906]
[1756955974962,5.25868824,4427.4,4426.8,3.91]
[1756955975121,0.2989,4426.9,4426.8,3.91]
[1756955975323,1.2189,4426.9,4426.8,3.91]
[1756955975535,0.7554,4426.9,4426.8,5.647]
[1756955975754,1.2189,4426.9,4426.8,5.647]
[1756955976132,1.2189,4426.9,4426.8,1.737]
[1756955976331,0.88429,4426.9,4426.8,5.656]
[1756955976531,1.2189,4426.9,4426.8,5.656]
[1756955977335,0.7554,4426.9,4426.8,6.448]
[1756955977749,1.2189,4426.9,4426.8,5.658]
[1756955978424,0.7554,4426.9,4426.8,5.658]
[1756955978628,0.7554,4426.9,4426.8,5.657]
[1756955978861,1.2189,4426.9,4426.8,5.657]
[1756955979263,0.7554,4426.9,4426.8,5.657]
[1756955979953,1.2189,4426.9,4426.8,5.657]
[1756955980970,0.2989,4426.9,4426.8,6.449]
[1756955981136,0.2989,4426.9,4426.8,8.7079681]
[1756955981465,0.2999,4426.9,4426.8,8.7079681]
[1756955981638,0.001,4426.9,4426.8,8.7079681]
[1756955982253,0.7564,4426.9,4426.8,6.449]
[1756955982452,1.2199,4426.9,4426.8,6.449]
[1756955982962,0.2999,4426.9,4426.8,8.7079681]
[1756955983151,0.001,4426.9,4426.8,8.7079681]
[1756955983482,0.001,4426.9,4426.8,9.32981181]
[1756955983974,0.001,4426.9,4426.8,9.03131181]
[1756955984172,0.001,4426.9,4426.8,9.32981181]
[1756955984374,0.001,4426.9,4426.8,9.89431181]
[1756955984975,0.001,4426.9,4426.8,5.97431181]
[1756955985173,0.2999,4426.9,4426.8,9.13611181]
[1756955985337,0.2999,4426.9,4426.8,5.22411181]
[1756955985528,0.2999,4426.9,4426.8,9.13511181]
[1756955985733,0.001,4426.9,4426.8,9.13511181]
[1756955985934,0.001,4426.9,4426.8,5.97431181]
[1756955986135,0.001,4426.9,4426.8,10.33081181]
[1756955986464,0.001,4426.9,4426.8,18.64601181]
[1756955987264,0.001,4426.9,4426.8,18.66701181]
[1756955987842,0.001,4426.9,4426.8,18.22151181]
[1756955988043,0.2999,4426.9,4426.8,13.3549681]
[1756955988237,0.001,4426.9,4426.8,13.6534681]
[1756955988447,0.2999,4426.9,4426.8,9.4239681]
[1756955988782,0.2999,4426.9,4426.8,13.3549681]
[1756955989178,0.001,4426.9,4426.8,13.6534681]
[1756955989380,0.001,4426.9,4426.8,16.03712118]
[1756955989555,0.7564,4426.9,4426.8,11.80762118]
[1756955989761,0.2999,4426.9,4426.8,13.3539681]
[1756955989960,0.2999,4426.9,4426.8,14.1459681]
[1756955990168,0.001,4426.9,4426.8,15.3416681]
[1756955990357,0.001,4426.9,4426.8,14.8961681]
[1756955992470,0.001,4426.9,4426.8,18.3416681]
[1756955992668,0.001,4426.9,4426.8,20.40214111]
[1756955993091,0.001,4426.9,4426.8,16.47214111]
[1756955993270,1e-08,4427.8,4427.7,2.25850893]
[1756955993470,1e-08,4427.8,4427.7,11.72150893]
[1756955993796,1e-08,4427.8,4427.7,8.98220893]
[1756955993997,1e-08,4427.8,4427.7,14.06928833]
[1756955994175,1e-08,4427.8,4427.7,13.62378833]
[1756955994374,1e-08,4427.8,4427.7,9.87358833]
[1756955995605,0.75540001,4427.8,4427.7,7.95750893]
[1756955995773,0.75540001,4427.8,4427.7,4.78650893]
[1756955995962,0.75540001,4427.8,4427.7,8.74750893]
[1756955996290,0.75540001,4427.8,4427.7,8.86030893]
[1756955996493,1.21890001,4427.8,4427.7,5.8088]
[1756955996792,0.75540001,4427.8,4427.7,8.06730893]
[1756955996999,0.75540001,4427.8,4427.7,8.85930893]
[1756955997165,1.21890001,4427.8,4427.7,6.6008]
[1756955997360,1.21890001,4427.8,4427.7,1.8488]
[1756955997562,1.21890001,4427.8,4427.7,5.694]
[1756955999385,0.29890001,4427.8,4427.7,5.694]
[1756955999717,1e-08,4427.8,4427.7,10.07538893]
[1756956000065,1e-08,4427.8,4427.7,10.18818893]
[1756956000266,0.28500001,4427.8,4427.7,4.89930893]
[1756956000462,1e-08,4427.8,4427.7,8.85430893]
[1756956000768,1e-08,4427.8,4427.7,9.15040893]
[1756956000992,1e-08,4427.8,4427.7,9.60660893]
[1756956001194,0.00100001,4427.8,4427.7,9.60660893]
[1756956001389,0.00100001,4427.8,4427.7,10.83725911]
[1756956001705,0.00100001,4427.8,4427.7,14.27855911]
[1756956002772,0.00100001,4427.8,4427.7,10.32355911]
[1756956002976,0.00100001,4427.8,4427.7,14.28055911]
[1756956003779,0.00100001,4427.8,4427.7,14.76885911]
[1756956004675,0.00100001,4427.8,4427.7,9.58155911]
[1756956004980,0.00100001,4427.8,4427.7,14.77385911]
[1756956005174,0.00100001,4427.8,4427.7,14.28255911]
[1756956005803,0.00100001,4427.8,4427.7,10.32355911]
[1756956006004,0.00100001,4427.8,4427.7,14.28555911]
[1756956006204,0.00100001,4427.8,4427.7,10.32355911]
[1756956006409,0.00100001,4427.8,4427.7,9.88225911]
[1756956006803,0.00100001,4427.8,4427.7,13.09095911]
[1756956007002,0.00100001,4427.8,4427.7,8.33795911]
[1756956007305,0.75910001,4427.8,4427.7,2.37130893]
[1756956007519,0.75910001,4427.8,4427.7,8.36440893]
[1756956007520,0.00100001,4427.8,4427.7,8.36440893]
[1756956007888,0.00100001,4427.8,4427.7,8.86030893]
[1756956008089,0.00100001,4427.8,4427.7,8.86130893]
[1756956008409,0.28600001,4427.8,4427.7,8.86230893]
[1756956008618,0.00100001,4427.8,4427.7,8.86230893]
[1756956008910,0.00100001,4427.8,4427.7,10.26949911]
[1756956009078,0.00100001,4427.8,4427.7,9.97339911]
[1756956009523,0.75910001,4427.8,4427.7,4.10730893]
[1756956009683,1.25040001,4427.8,4427.7,8.06830893]
[1756956010007,0.75910001,4427.8,4427.7,8.86030893]
[1756956010212,0.75910001,4427.8,4427.7,8.85830893]
[1756956010382,0.75910001,4427.8,4427.7,4.10730893]
[1756956010577,0.00100001,4427.8,4427.7,8.06730893]
[1756956010774,0.00100001,4427.8,4427.7,8.85930893]
[1756956010979,0.75910001,4427.8,4427.7,8.86030893]
[1756956011701,0.75910001,4427.8,4427.7,4.89930893]
[1756956012018,1.25040001,4427.8,4427.7,8.06730893]
[1756956012512,1.25040001,4427.8,4427.7,4.10730893]
[1756956012720,1.25040001,4427.8,4427.7,7.95350893]
[1756956013234,0.00100001,4427.8,4427.7,8.85830893]
[1756956013584,0.28600001,4427.8,4427.7,8.85830893]
[1756956013830,0.75910001,4427.8,4427.7,8.85730893]
[1756956014116,0.75910001,4427.8,4427.7,4.89930893]
[1756956014514,1.25040001,4427.8,4427.7,4.89930893]
[1756956014819,1.25040001,4427.8,4427.7,8.85630893]
[1756956014820,0.75910001,4427.8,4427.7,8.85630893]
[1756956015118,0.75910001,4427.8,4427.7,8.85530893]
[1756956015526,0.28600001,4427.8,4427.7,8.85530893]
[1756956016221,0.28600001,4427.8,4427.7,1.8488]
[1756956016384,0.28600001,4427.8,4427.7,8.06130893]
[1756956016385,1.25040001,4427.8,4427.7,8.06130893]
[1756956016990,0.28600001,4427.8,4427.7,8.85330893]
[1756956017613,0.75910001,4427.8,4427.7,8.85430893]
[1756956018616,0.75910001,4427.8,4427.7,7.94850893]
[1756956018820,1.25040001,4427.8,4427.7,7.94850893]
[1756956019121,1.25040001,4427.8,4427.7,7.94650893]
[1756956019620,1.25040001,4427.8,4427.7,3.99450893]
[1756956019821,1.25040001,4427.8,4427.7,7.94750893]
[1756956020887,0.28600001,4427.8,4427.7,7.94750893]
[1756956021088,0.28600001,4427.8,4427.7,7.94550893]
[1756956021089,0.75910001,4427.8,4427.7,7.94550893]
[1756956022923,0.75910001,4427.8,4427.7,3.99450893]
[1756956023218,0.75910001,4427.8,4427.7,7.94350893]
[1756956023720,0.75910001,4427.8,4427.7,3.99450893]
[1756956024031,0.75910001,4427.8,4427.7,7.94050893]
[1756956024228,0.75910001,4427.8,4427.7,7.93850893]
[1756956024795,0.28600001,4427.8,4427.7,3.99450893]
[1756956025003,0.00100001,4427.8,4427.7,10.51086546]
[1756956027555,0.00100001,4427.8,4427.7,10.50786546]
[1756956028543,0.00100001,4427.8,4427.7,13.62066546]
[1756956028848,0.00100001,4427.8,4427.7,16.82066546]
[1756956029426,0.00100001,4427.8,4427.7,12.88166546]
[1756956029777,0.00100001,4427.8,4427.7,16.81966546]
[1756956030715,0.00100001,4427.8,4427.7,12.88166546]
[1756956030919,0.00100001,4427.8,4427.7,16.81866546]
[1756956032049,0.00100001,4427.8,4427.7,12.88166546]
[1756956032247,0.00100001,4427.8,4427.7,16.81466546]
[1756956036161,1e-08,4428.8,4428.7,3.04999896]
[1756956036466,1e-08,4428.8,4428.7,9.01799886]
[1756956036664,1e-08,4428.8,4428.7,9.90599886]
[1756956036873,1e-08,4428.8,4428.7,13.57919886]
[1756956037378,1e-08,4428.8,4428.7,16.58619886]
[1756956038244,1e-08,4428.8,4428.7,16.7586344]
[1756956039175,1e-08,4428.8,4428.7,12.8246344]
[1756956039376,1e-08,4428.8,4428.7,16.7626344]
[1756956040183,1e-08,4428.8,4428.7,16.2894344]
[1756956040371,1e-08,4428.8,4428.7,16.7626344]
[1756956040883,1e-08,4428.8,4428.7,16.7606344]
[1756956042694,0.025,4430.8,4430.7,3.0489797]
[1756956042856,0.025,4430.8,4430.7,8.8287797]
[1756956043196,0.8009,4430.8,4430.7,8.0367797]
[1756956043344,1.2998,4430.8,4430.7,1.8478]
[1756956043545,1.2998,4430.8,4430.7,5.7788]
[1756956043874,1.42978,4430.8,4430.7,5.666]
[1756956044086,1.2998,4430.8,4430.7,1.735]
[1756956044380,1.2998,4430.8,4430.7,6.469]
[1756956044541,1.2998,4430.8,4430.7,8.7259797]
[1756956044873,1.2998,4430.8,4430.7,8.7269797]
[1756956045240,1.2998,4430.8,4430.7,5.676]
[1756956045748,1.2998,4430.8,4430.7,7.9329797]
[1756956046073,1.42978,4430.8,4430.7,1.735]
[1756956046376,1.42978,4430.8,4430.7,3.649]
[1756956046872,1.42978,4430.8,4428.8,4.47648442]
[1756956046873,3.0,4430.7,4430.5,1.735]
[1756956047075,0.15498,4430.8,4430.4,1.735]
[1756956047243,2.41190889,4430.8,4430.5,3.94]
[1756956047444,3.24119089,4430.7,4430.5,3.94]
[1756956047780,1.2748,4430.6,4430.5,3.94]
[1756956048668,1.2748,4430.6,4430.5,3.939]
[1756956049689,1.2748,4430.6,4430.5,3.937]
[1756956052384,0.7759,4430.6,4430.5,6.19408159]